fUSD/lending_fUSD_20250320
["ID","MTS","AMOUNT","RATE_DAILY","PERIOD"]
[356421218,1742431850224,-957.82,0.00027885,2]
[356421219,1742431850234,-500.0,0.00027885,2]
[356421220,1742431850244,-777.11,0.00027885,2]
[356421221,1742431850255,-503.25,0.00027885,2]
[356421222,1742431850266,-1459.99,0.00027885,2]
[356421223,1742431850276,-500.0,0.00027885,2]
[356421224,1742431850286,-500.0,0.00027885,2]
[356421225,1742431850297,-681.7,0.00027885,2]
[356421226,1742431850307,-655.92,0.00027885,2]
[356421227,1742431850317,-500.0,0.00027885,2]
[356421228,1742431850327,-500.0,0.00027885,2]
[356421229,1742431850337,-543.66,0.00027885,2]
[356421230,1742431850348,-500.0,0.00027885,2]
[356421231,1742431850358,-1693.47,0.00027885,2]
[356421232,1742431850368,-500.0,0.00027885,2]
[356421233,1742431850378,-710.32,0.00027885,2]
[356421234,1742431850388,-675.91,0.00027885,2]
[356421235,1742431850399,-838.62,0.00027885,2]
[356421236,1742431850410,-500.0,0.00027885,2]
[356421237,1742431850420,-500.0,0.00027885,2]
[356421238,1742431850431,-153.47595276,0.00027885,2]
[356421239,1742431850453,-362.03404724,0.00027885,2]
[356421240,1742431850463,-500.0,0.00027885,2]
[356421241,1742431850474,-500.0,0.00027885,2]
[356421242,1742431850485,-500.0,0.00027885,2]
[356421243,1742431850495,-663.67,0.00027885,2]
[356421244,1742431850505,-9.33975276,0.00027885,2]
[356421245,1742431850517,-960.90024724,0.00027885,2]
[356421246,1742431850527,-500.0,0.00027885,2]
[356421247,1742431850537,-964.08,0.00027885,2]
[356421248,1742431850547,-695.35,0.00027885,2]
[356421249,1742431850557,-894.43,0.00027885,2]
[356421250,1742431850567,-62.23975262,0.00027885,2]
[356421251,1742431850580,-437.76024738,0.00027885,2]
[356421252,1742431850591,-500.0,0.00027885,2]
[356421253,1742431850601,-500.0,0.00027885,2]
[356421254,1742431850611,-892.5,0.00027885,2]
[356421255,1742431850810,-1157.09,0.00027885,2]
[356421256,1742431850855,-579.87,0.00027885,2]
[356421257,1742431850865,-687.7,0.00027885,2]
[356421258,1742431850875,-154.995871,0.00027885,7]
[356421259,1742431850885,-500.0,0.00027885,2]
[356421260,1742431850894,-500.0,0.00027885,2]
[356421261,1742431850906,-1004.06,0.00027885,2]
[356421262,1742431850917,-505.91,0.00027885,2]
[356421263,1742431850927,-1180.65,0.00027885,2]
[356421264,1742431850937,-38.06388162,0.00027885,2]
[356421265,1742431850949,-461.93611838,0.00027885,2]
[356421266,1742431850959,-694.32,0.00027885,2]
[356421267,1742431850969,-561.03,0.00027885,2]
[356421268,1742431850979,-500.0,0.00027885,120]
[356421269,1742431850988,-500.0,0.00027885,2]
[356421270,1742431850998,-500.0,0.00027885,2]
[356421271,1742431851007,-680.62,0.00027885,2]
[356421272,1742431851016,-528.98,0.00027885,2]
[356421273,1742431851026,-300.0,0.00027885,2]
[356421274,1742431851036,-1514.06,0.00027885,2]
[356421275,1742431851045,-500.0,0.00027885,2]
[356421276,1742431851055,-500.0,0.00027885,2]
[356421277,1742431851064,-500.0,0.00027885,2]
[356421278,1742431851074,-500.0,0.00027885,2]
[356421279,1742431851083,-500.0,0.00027885,2]
[356421280,1742431851092,-500.0,0.00027885,2]
[356421281,1742431851102,-589.35,0.00027885,2]
[356421282,1742431851111,-558.48,0.00027885,2]
[356421283,1742431851121,-536.42,0.00027885,2]
[356421284,1742431851130,-500.0,0.00027885,2]
[356421285,1742431851139,-500.0,0.00027885,2]
[356421286,1742431851149,-500.0,0.00027885,2]
[356421287,1742431851161,-500.0,0.00027885,2]
[356421288,1742431851171,-500.0,0.00027885,2]
[356421289,1742431851180,-516.21,0.00027885,2]
[356421290,1742431851190,-609.78,0.00027885,2]
[356421291,1742431851200,-500.0,0.00027885,2]
[356421292,1742431851211,-1337.97,0.00027885,2]
[356421293,1742431851220,-500.0,0.00027885,2]
[356421294,1742431851230,-746.35,0.00027885,2]
[356421295,1742431851242,-500.0,0.00027885,2]
[356421296,1742431851252,-500.0,0.00027885,2]
[356421297,1742431851261,-547.02,0.00027885,2]
[356421298,1742431851271,-500.0,0.00027885,2]
[356421299,1742431851280,-453.98810762,0.00027885,2]
[356421300,1742431851289,-151.0,0.00027885,7]
[356421301,1742431851299,-678.77,0.00027885,2]
[356421302,1742431851309,-500.0,0.00027885,2]
[356421303,1742431851318,-151.0,0.00027885,7]
[356421304,1742431851327,-500.0,0.00027885,2]
[356421305,1742431851337,-1350.53,0.00027885,2]
[356421306,1742431851347,-500.0,0.00027885,2]
[356421307,1742431851356,-500.0,0.00027885,2]
[356421308,1742431851365,-153.003783,0.00027885,7]
[356421309,1742431851375,-500.0,0.00027885,2]
[356421310,1742431851384,-500.0,0.00027885,2]
[356421311,1742431851394,-500.0,0.00027885,2]
[356421312,1742431851404,-500.0,0.00027885,2]
[356421313,1742431851413,-655.95,0.00027885,2]
[356421314,1742431851423,-500.0,0.00027885,2]
[356421315,1742431851433,-500.0,0.00027885,2]
[356421316,1742431851442,-500.0,0.00027885,2]
[356421317,1742431851451,-500.0,0.00027885,2]
[356421318,1742431851462,-500.0,0.00027885,2]
[356421319,1742431851473,-500.0,0.00027885,2]
[356421320,1742431851482,-1350.24,0.00027885,2]
[356421321,1742431851491,-526.86,0.00027885,2]
[356421322,1742431851500,-500.0,0.00027885,2]
[356421323,1742431851509,-500.0,0.00027885,2]
[356421324,1742431851519,-500.0,0.00027885,2]
[356421325,1742431851528,-500.0,0.00027885,2]
[356421326,1742431851537,-647.51,0.00027885,2]
[356421327,1742431851547,-500.0,0.00027885,2]
[356421328,1742431851556,-500.0,0.00027885,2]
[356421329,1742431851565,-500.0,0.00027885,2]
[356421330,1742431851575,-1077.32,0.00027885,2]
[356421331,1742431851584,-740.28,0.00027885,2]
[356421332,1742431851593,-869.02,0.00027885,2]
[356421333,1742431851603,-500.0,0.00027885,2]
[356421334,1742431851612,-500.0,0.00027885,2]
[356421335,1742431851622,-500.0,0.00027885,2]
[356421336,1742431851631,-500.0,0.00027885,2]
[356421337,1742431851641,-500.0,0.00027885,2]
[356421338,1742431851650,-500.0,0.00027885,2]
[356421339,1742431851659,-500.0,0.00027885,2]
[356421340,1742431851669,-1013.24,0.00027885,2]
[356421341,1742431851679,-500.0,0.00027885,2]
[356421342,1742431851692,-500.0,0.00027885,2]
[356421343,1742431851702,-634.65,0.00027885,2]
[356421344,1742431851711,-500.0,0.00027885,2]
[356421345,1742431851720,-500.0,0.00027885,2]
[356421346,1742431851731,-500.0,0.00027885,2]
[356421347,1742431851740,-500.0,0.00027885,2]
[356421348,1742431851749,-500.0,0.00027885,2]
[356421349,1742431851759,-500.0,0.00027885,2]
[356421350,1742431851769,-500.0,0.00027885,2]
[356421351,1742431851779,-500.0,0.00027885,2]
[356421352,1742431851788,-500.0,0.00027885,2]
[356421353,1742431851797,-500.0,0.00027885,2]
[356421354,1742431851807,-500.0,0.00027885,2]
[356421355,1742431851816,-661.15,0.00027885,2]
[356421356,1742431851826,-976.66,0.00027885,2]
[356421357,1742431851836,-795.95,0.00027885,2]
[356421358,1742431851846,-585.48,0.00027885,2]
[356421359,1742431851856,-500.0,0.00027885,2]
[356421360,1742431851866,-500.0,0.00027885,2]
[356421361,1742431851875,-1027.97,0.00027885,2]
[356421362,1742431851885,-500.0,0.00027885,2]
[356421363,1742431851894,-500.0,0.00027885,2]
[356421364,1742431851905,-674.82,0.00027885,2]
[356421365,1742431851914,-566.76,0.00027885,2]
[356421366,1742431851923,-500.0,0.00027885,2]
[356421367,1742431851933,-500.0,0.00027885,2]
[356421368,1742431851942,-500.0,0.00027885,2]
[356421369,1742431851951,-500.0,0.00027885,2]
[356421370,1742431851961,-1262.92,0.00027885,2]
[356421371,1742431851971,-500.0,0.00027885,2]
[356421372,1742431851981,-500.0,0.00027885,2]
[356421373,1742431851992,-500.0,0.00027885,2]
[356421374,1742431852003,-500.0,0.00027885,2]
[356421375,1742431852013,-500.0,0.00027885,2]
[356421376,1742431852022,-500.0,0.00027885,2]
[356421377,1742431852032,-1562.85,0.00027885,2]
[356421378,1742431852041,-557.85,0.00027885,2]
[356421379,1742431852051,-500.0,0.00027885,2]
[356421380,1742431852061,-500.0,0.00027885,2]
[356421381,1742431852071,-539.11415458,0.00027885,2]
[356421382,1742431852080,-1093.15,0.00027885,2]
[356421383,1742431852089,-500.0,0.00027885,2]
[356421384,1742431852099,-885.67,0.00027885,2]
[356421385,1742431852108,-753.99,0.00027885,2]
[356421386,1742431852117,-731.95,0.00027885,2]
[356421387,1742431852127,-500.0,0.00027885,2]
[356421388,1742431852136,-500.0,0.00027885,2]
[356421389,1742431852145,-500.0,0.00027885,2]
[356421390,1742431852155,-959.62,0.00027885,2]
[356421391,1742431852164,-861.73,0.00027885,2]
[356421392,1742431852174,-500.0,0.00027885,2]
[356421393,1742431852184,-852.92,0.00027885,2]
[356421394,1742431852193,-500.0,0.00027885,2]
[356421395,1742431852203,-500.0,0.00027885,2]
[356421396,1742431852213,-823.69,0.00027885,2]
[356421397,1742431852222,-500.0,0.00027885,2]
[356421398,1742431852232,-500.0,0.00027885,2]
[356421399,1742431852242,-500.0,0.00027885,2]
[356421400,1742431852252,-532.58,0.00027885,2]
[356421401,1742431852261,-500.0,0.00027885,2]
[356421402,1742431852271,-736.88,0.00027885,2]
[356421403,1742431852280,-500.0,0.00027885,2]
[356421404,1742431852290,-689.06,0.00027885,2]
[356421405,1742431852299,-500.0,0.00027885,2]
[356421406,1742431852309,-500.0,0.00027885,2]
[356421407,1742431852319,-500.0,0.00027885,2]
[356421408,1742431852328,-1143.89,0.00027885,2]
[356421409,1742431852338,-500.0,0.00027885,2]
[356421410,1742431852347,-539.14,0.00027885,2]
[356421411,1742431852358,-535.36,0.00027885,2]
[356421412,1742431852370,-577.75,0.00027885,2]
[356421413,1742431852380,-550.31301253,0.00027885,2]
[356421414,1742431852389,-572.7,0.00027885,2]
[356421415,1742431852399,-595.3,0.00027885,2]
[356421416,1742431852409,-856.69,0.00027885,2]
[356421417,1742431852419,-773.98,0.00027885,2]
[356421418,1742431852428,-500.0,0.00027885,2]
[356421419,1742431852438,-500.0,0.00027885,2]
[356421420,1742431852447,-545.18,0.00027885,2]
[356421421,1742431852456,-500.0,0.00027885,2]
[356421422,1742431852466,-151.0,0.00027885,7]
[356421423,1742431852476,-1000.0,0.00027885,2]
[356421424,1742431852485,-574.87,0.00027885,2]
[356421425,1742431852494,-560.38,0.00027885,2]
[356421426,1742431852503,-500.0,0.00027885,2]
[356421427,1742431852512,-841.52,0.00027886,2]
[356421428,1742431852521,-500.0,0.00027886,2]
[356421429,1742431852530,-500.0,0.00027886,2]
[356421430,1742431852540,-770.62,0.00027886,2]
[356421431,1742431852550,-782.09,0.00027886,2]
[356421432,1742431852561,-783.41,0.00027886,2]
[356421433,1742431852570,-500.0,0.00027886,2]
[356421434,1742431852580,-500.0,0.00027886,2]
[356421435,1742431852589,-1940.96,0.00027886,2]
[356421436,1742431852598,-543.05,0.00027886,2]
[356421437,1742431852607,-720.15,0.00027886,2]
[356421438,1742431852617,-771.22,0.00027886,2]
[356421439,1742431852626,-633.18,0.00027886,2]
[356421440,1742431852636,-931.17,0.00027886,2]
[356421441,1742431852646,-500.0,0.00027886,2]
[356421442,1742431852655,-560.21,0.00027886,2]
[356421443,1742431852665,-500.0,0.00027886,2]
[356421444,1742431852675,-838.11,0.00027886,2]
[356421445,1742431852688,-500.0,0.00027886,2]
[356421446,1742431852698,-220.44879659,0.00027886,2]
[356421447,1742431852707,-150.54925,0.00027888,7]
[356421448,1742431852717,-500.0,0.00027897,2]
[356421449,1742431852727,-195.83207871,0.00027898,2]
[356421450,1742431852736,-151.0,0.000279,7]
[356421451,1742431852746,-151.0,0.000279,7]
[356421452,1742431852756,-2100.0,0.000279,10]
[356421453,1742431852767,-555.08498992,0.000279,4]
[356421454,1742431852776,-804.58,0.00027926,2]
[356421455,1742431852786,-728.13,0.00027926,2]
[356421456,1742431852795,-1102.2,0.00027926,2]
[356421457,1742431852805,-500.0,0.00027927,2]
[356421458,1742431852815,-500.0,0.00027927,2]
[356421459,1742431852823,-500.0,0.00027927,2]
[356421460,1742431852833,-500.0,0.00027927,2]
[356421461,1742431852843,-552.85,0.00027927,2]
[356421462,1742431852852,-500.0,0.00027927,2]
[356421463,1742431852861,-500.0,0.00027927,2]
[356421464,1742431852871,-500.0,0.00027927,2]
[356421465,1742431852880,-500.0,0.00027927,2]
[356421466,1742431852889,-500.0,0.00027927,2]
[356421467,1742431852899,-829.55,0.00027927,2]
[356421468,1742431852913,-500.0,0.00027927,2]
[356421469,1742431852923,-500.0,0.00027927,2]
[356421470,1742431852932,-500.0,0.00027927,2]
[356421471,1742431852942,-697.45,0.00027927,2]
[356421472,1742431852951,-898.9,0.00027927,2]
[356421473,1742431852960,-500.0,0.00027927,2]
[356421474,1742431852970,-500.0,0.00027927,2]
[356421475,1742431852980,-500.0,0.00027927,2]
[356421476,1742431852989,-559.17,0.00027927,2]
[356421477,1742431852999,-150.0,0.00027927,2]
[356421478,1742431853008,-509.3,0.00027927,2]
[356421479,1742431853018,-500.0,0.00027927,2]
[356421480,1742431853028,-715.11,0.00027927,2]
[356421481,1742431853038,-253.82024431,0.00027927,2]
[356421482,1742431853048,-500.0,0.00027927,2]
[356421483,1742431853058,-500.0,0.00027927,2]
[356421484,1742431853067,-500.0,0.00027927,2]
[356421485,1742431853077,-500.0,0.00027927,2]
[356421486,1742431853087,-1108.75,0.00027927,2]
[356421487,1742431853096,-500.0,0.00027927,2]
[356421488,1742431853106,-500.0,0.00027929,2]
[356421489,1742431853115,-500.0,0.00027939,2]
[356421490,1742431853124,-500.0,0.00027939,2]
[356421491,1742431853134,-500.0,0.00027939,2]
[356421492,1742431853143,-500.0,0.00027939,2]
[356421493,1742431853156,-500.0,0.00027939,2]
[356421494,1742431853165,-500.0,0.00027939,2]
[356421495,1742431853237,-500.0,0.00027939,2]
[356421496,1742431853247,-500.0,0.00027939,2]
[356421497,1742431853257,-500.0,0.00027939,2]
[356421498,1742431853267,-500.0,0.00027939,2]
[356421499,1742431853277,-500.0,0.00027939,2]
[356421500,1742431853286,-500.0,0.00027939,2]
[356421501,1742431853296,-500.0,0.00027939,2]
[356421502,1742431853305,-2720.8,0.00027939,2]
[356421503,1742431853315,-992.77,0.00027939,2]
[356421504,1742431853324,-500.0,0.00027939,2]
[356421505,1742431853333,-570.62,0.00027939,2]
[356421506,1742431853343,-629.88,0.00027939,2]
[356421507,1742431853353,-500.0,0.00027939,2]
[356421508,1742431853362,-500.0,0.00027939,2]
[356421509,1742431853372,-874.150545,0.00027939,2]
[356421510,1742431853381,-500.0,0.00027939,2]
[356421511,1742431853390,-1091.63,0.00027939,2]
[356421512,1742431853399,-500.0,0.00027939,2]
[356421513,1742431853409,-534.54,0.00027939,2]
[356421514,1742431853418,-500.0,0.00027939,2]
[356421515,1742431853427,-500.0,0.00027939,2]
[356421516,1742431853437,-500.0,0.00027939,2]
[356421517,1742431853446,-721.8,0.00027939,2]
[356421518,1742431853455,-715.79,0.00027939,2]
[356421519,1742431853465,-500.0,0.00027939,2]
[356421520,1742431853474,-1041.27,0.00027939,2]
[356421521,1742431853483,-507.58243292,0.00027939,2]
[356421522,1742431853493,-651.49,0.00027939,2]
[356421523,1742431853502,-500.0,0.00027939,2]
[356421524,1742431853511,-567.12,0.00027939,2]
[356421525,1742431853521,-500.0,0.00027939,2]
[356421526,1742431853530,-500.0,0.00027939,2]
[356421527,1742431853540,-500.0,0.00027939,2]
[356421528,1742431853550,-851.0,0.00027939,2]
[356421529,1742431853559,-799.81,0.00027939,2]
[356421530,1742431853568,-762.36,0.00027939,2]
[356421531,1742431853577,-1069.410702,0.00027939,2]
[356421532,1742431853587,-502.59,0.00027939,2]
[356421533,1742431853596,-500.0,0.00027939,2]
[356421534,1742431853605,-500.0,0.00027939,2]
[356421535,1742431853614,-649.97,0.00027939,2]
[356421536,1742431853623,-500.0,0.00027939,2]
[356421537,1742431853632,-500.0,0.00027939,2]
[356421538,1742431853641,-746.37,0.00027939,2]
[356421539,1742431853652,-500.0,0.00027939,2]
[356421540,1742431853662,-500.0,0.00027939,2]
[356421541,1742431853672,-646.83,0.00027939,2]
[356421542,1742431853682,-669.38,0.00027939,2]
[356421543,1742431853695,-647.38,0.00027939,2]
[356421544,1742431853704,-500.0,0.00027939,2]
[356421545,1742431853713,-651.84,0.00027939,2]
[356421546,1742431853722,-500.0,0.00027939,2]
[356421547,1742431853734,-529.8,0.00027939,2]
[356421548,1742431853743,-500.0,0.00027939,2]
[356421549,1742431853754,-423.55152751,0.00027939,2]
[356421550,1742431853763,-500.0,0.00027939,2]
[356421551,1742431853773,-616.28,0.00027939,2]
[356421552,1742431853783,-551.03,0.00027939,2]
[356421553,1742431853792,-529.08,0.00027939,2]
[356421554,1742431853801,-500.0,0.00027939,2]
[356421555,1742431853810,-500.0,0.00027939,2]
[356421556,1742431853819,-500.0,0.00027939,2]
[356421557,1742431853828,-500.0,0.00027939,2]
[356421558,1742431853837,-803.85,0.00027939,2]
[356421559,1742431853847,-500.0,0.00027939,2]
[356421560,1742431853857,-500.0,0.00027939,2]
[356421561,1742431853866,-665.86,0.00027939,2]
[356421562,1742431853875,-586.81,0.00027939,2]
[356421563,1742431853884,-500.0,0.00027939,2]
[356421564,1742431853893,-500.0,0.00027939,2]
[356421565,1742431853902,-500.0,0.00027939,2]
[356421566,1742431853912,-500.0,0.00027939,2]
[356421567,1742431853921,-1095.84,0.00027939,2]
[356421568,1742431853930,-500.0,0.00027939,2]
[356421569,1742431853939,-500.0,0.00027939,2]
[356421570,1742431853949,-500.0,0.00027939,2]
[356421571,1742431853958,-500.0,0.00027939,2]
[356421572,1742431853967,-1216.63,0.00027939,2]
[356421573,1742431853976,-500.0,0.00027939,2]
[356421574,1742431853985,-704.86,0.00027939,2]
[356421575,1742431853995,-645.99,0.00027939,2]
[356421576,1742431854004,-542.33,0.00027939,2]
[356421577,1742431854013,-500.0,0.00027939,2]
[356421578,1742431854023,-500.0,0.00027939,2]
[356421579,1742431854032,-500.0,0.00027939,2]
[356421580,1742431854041,-500.0,0.00027939,2]
[356421581,1742431854050,-500.0,0.00027939,2]
[356421582,1742431854059,-1493.1,0.00027939,2]
[356421583,1742431854068,-500.0,0.00027939,2]
[356421584,1742431854077,-1431.7053326,0.00027939,2]
[356421585,1742431854086,-500.0,0.00027939,2]
[356421586,1742431854095,-708.03,0.00027939,2]
[356421587,1742431854104,-500.0,0.00027939,2]
[356421588,1742431854113,-674.83,0.00027939,2]
[356421589,1742431854122,-500.0,0.00027939,2]
[356421590,1742431854131,-1084.64,0.00027939,2]
[356421591,1742431854141,-536.43,0.00027939,2]
[356421592,1742431854150,-1085.06,0.00027939,2]
[356421593,1742431854162,-500.0,0.00027939,2]
[356421594,1742431854171,-500.0,0.00027939,2]
[356421595,1742431854180,-500.0,0.00027939,2]
[356421596,1742431854189,-500.0,0.00027939,2]
[356421597,1742431854199,-1051.13,0.00027939,2]
[356421598,1742431854208,-1199.44,0.00027939,2]
[356421599,1742431854218,-816.96,0.00027939,2]
[356421600,1742431854227,-500.0,0.00027939,2]
[356421601,1742431854236,-952.87,0.00027939,2]
[356421602,1742431854245,-313.09035337,0.00027939,2]
[356421603,1742431854254,-500.0,0.00027939,2]
[356421604,1742431854264,-500.0,0.00027939,2]
[356421605,1742431854273,-500.0,0.00027939,2]
[356421606,1742431854282,-500.0,0.00027939,2]
[356421607,1742431854292,-500.0,0.00027939,2]
[356421608,1742431854301,-675.46,0.00027939,2]
[356421609,1742431854310,-1075.61,0.00027939,2]
[356421610,1742431854319,-635.47,0.00027939,2]
[356421611,1742431854329,-500.0,0.00027939,2]
[356421612,1742431854338,-500.0,0.00027939,2]
[356421613,1742431854348,-155.57716893,0.00027939,2]
[356421614,1742431854358,-762.51,0.00027939,2]
[356421615,1742431854368,-500.0,0.00027939,2]
[356421616,1742431854377,-500.0,0.00027939,2]
[356421617,1742431854386,-1118.78,0.00027939,2]
[356421618,1742431854396,-500.0,0.00027939,2]
[356421619,1742431854406,-500.0,0.00027939,2]
[356421620,1742431854415,-500.0,0.00027939,2]
[356421621,1742431854424,-500.0,0.00027939,2]
[356421622,1742431854434,-500.0,0.00027939,2]
[356421623,1742431854443,-565.29,0.00027939,2]
[356421624,1742431854452,-500.0,0.00027939,2]
[356421625,1742431854462,-500.0,0.00027939,2]
[356421626,1742431854471,-500.0,0.00027939,2]
[356421627,1742431854481,-500.0,0.00027939,2]
[356421628,1742431854490,-934.62,0.00027939,2]
[356421629,1742431854499,-621.77,0.00027939,2]
[356421630,1742431854509,-783.35,0.00027939,2]
[356421631,1742431854518,-1083.45,0.00027939,2]
[356421632,1742431854528,-548.23,0.00027939,2]
[356421633,1742431854537,-650.22,0.0002794,2]
[356421634,1742431854547,-968.19,0.0002794,2]
[356421635,1742431854556,-500.0,0.0002794,2]
[356421636,1742431854566,-509.51,0.0002794,2]
[356421637,1742431854576,-500.0,0.0002794,2]
[356421638,1742431854586,-500.0,0.0002794,2]
[356421639,1742431854595,-500.0,0.0002794,2]
[356421640,1742431854606,-500.0,0.0002794,2]
[356421641,1742431854615,-500.0,0.0002794,2]
[356421642,1742431854625,-500.0,0.0002794,2]
[356421643,1742431854634,-500.0,0.0002794,2]
[356421644,1742431854644,-955.81,0.0002794,2]
[356421645,1742431854653,-500.0,0.0002794,2]
[356421646,1742431854663,-500.0,0.0002794,2]
[356421647,1742431854672,-500.0,0.0002794,2]
[356421648,1742431854682,-1268.91,0.0002794,2]
[356421649,1742431854697,-185.78755638,0.0002794,2]
[356421650,1742431854705,-500.0,0.0002794,2]
[356421651,1742431854715,-1354.86,0.0002794,2]
[356421652,1742431854724,-500.0,0.0002794,2]
[356421653,1742431854734,-500.0,0.0002794,2]
[356421654,1742431854743,-222.68938835,0.0002794,2]
[356421655,1742431854753,-500.0,0.0002794,2]
[356421656,1742431854764,-500.0,0.0002794,2]
[356421657,1742431854774,-500.0,0.0002794,2]
[356421658,1742431854783,-500.0,0.0002794,2]
[356421659,1742431854792,-500.0,0.0002794,2]
[356421660,1742431854801,-500.0,0.0002794,2]
[356421661,1742431854810,-159.73617123,0.0002794,2]
[356421662,1742431854819,-702.67,0.0002794,2]
[356421663,1742431854827,-677.87,0.0002794,2]
[356421664,1742431854837,-500.0,0.0002794,2]
[356421665,1742431854846,-500.0,0.0002794,2]
[356421666,1742431854855,-500.0,0.0002794,2]
[356421667,1742431854864,-500.0,0.0002794,2]
[356421668,1742431854874,-500.0,0.0002794,2]
[356421669,1742431854883,-568.7,0.0002794,2]
[356421670,1742431854893,-500.0,0.0002794,2]
[356421671,1742431854905,-500.0,0.0002794,2]
[356421672,1742431854914,-500.0,0.0002794,2]
[356421673,1742431854924,-500.0,0.0002794,2]
[356421674,1742431854933,-500.0,0.0002794,2]
[356421675,1742431854943,-514.45987856,0.0002794,2]
[356421676,1742431854952,-995.89,0.0002794,2]
[356421677,1742431854962,-500.0,0.0002794,2]
[356421678,1742431854971,-500.0,0.0002794,2]
[356421679,1742431854981,-500.0,0.0002794,2]
[356421680,1742431854991,-640.52,0.0002794,2]
[356421681,1742431855000,-500.0,0.0002794,2]
[356421682,1742431855009,-1028.82,0.0002794,2]
[356421683,1742431855019,-500.0,0.0002794,2]
[356421684,1742431855028,-537.95973794,0.0002794,2]
[356421685,1742431855037,-500.0,0.0002794,2]
[356421686,1742431855047,-500.0,0.0002794,2]
[356421687,1742431855057,-430.52000999,0.0002794,2]
[356421688,1742431855067,-500.0,0.0002794,2]
[356421689,1742431855076,-500.0,0.0002794,2]
[356421690,1742431855086,-500.0,0.0002794,2]
[356421691,1742431855095,-606.82,0.0002794,2]
[356421692,1742431855104,-500.0,0.0002794,2]
[356421693,1742431855112,-500.0,0.0002794,2]
[356421694,1742431855122,-196.30965801,0.0002794,2]
[356421695,1742431855131,-500.0,0.0002794,2]
[356421696,1742431855141,-617.47,0.0002794,2]
[356421697,1742431855151,-754.32,0.0002794,2]
[356421698,1742431855163,-500.0,0.0002794,2]
[356421699,1742431855172,-693.56,0.0002794,30]
[356421700,1742431855182,-655.31,0.0002794,2]
[356421701,1742431855192,-500.0,0.0002794,2]
[356421702,1742431855202,-500.0,0.0002794,2]
[356421703,1742431855211,-500.0,0.0002794,2]
[356421704,1742431855220,-809.51,0.0002794,2]
[356421705,1742431855230,-500.0,0.0002794,2]
[356421706,1742431855240,-500.0,0.0002794,2]
[356421707,1742431855250,-500.0,0.0002794,2]
[356421708,1742431855260,-500.0,0.0002794,2]
[356421709,1742431855269,-500.0,0.0002794,2]
[356421710,1742431855278,-551.8,0.0002794,2]
[356421711,1742431855288,-500.0,0.0002794,2]
[356421712,1742431855298,-500.0,0.0002794,2]
[356421713,1742431855308,-500.0,0.0002794,2]
[356421714,1742431855318,-500.0,0.0002794,2]
[356421715,1742431855327,-500.0,0.0002794,2]
[356421716,1742431855337,-500.0,0.0002794,2]
[356421717,1742431855347,-500.0,0.0002794,2]